fUST/lending_fUST_20251219
["ID","MTS","AMOUNT","RATE_DAILY","PERIOD"]
[399163660,1766130661382,-500.0,0.00054794,120]
[399163661,1766130661391,-500.0,0.00054794,120]
[399163662,1766130661401,-500.0,0.00054794,120]
[399163663,1766130661411,-514.35990717,0.00054794,120]
[399163664,1766130661420,-500.67520093,0.00054794,120]
[399163665,1766130661430,-2004.58,0.00054794,120]
[399163666,1766130661439,-500.0,0.00054794,120]
[399163667,1766130661447,-500.0,0.00054794,120]
[399163668,1766130661456,-555.38,0.00054794,120]
[399163669,1766130661465,-514.97408512,0.00054794,120]
[399163670,1766130661475,-500.0,0.00054794,120]
[399163671,1766130661484,-501.13129646,0.00054794,120]
[399163672,1766130661492,-500.0,0.00054794,120]
[399163673,1766130661501,-500.0,0.00054794,120]
[399163674,1766130661512,-500.0,0.00054794,120]
[399163675,1766130661521,-500.0,0.00054794,120]
[399163676,1766130661531,-515.47886457,0.00054794,120]
[399163677,1766130661540,-500.84602546,0.00054794,120]
[399163678,1766130661549,-500.0,0.00054794,120]
[399163679,1766130661559,-500.0,0.00054794,120]
[399163680,1766130661568,-501.82081359,0.00054794,120]
[399163681,1766130661577,-500.0,0.00054794,120]
[399163682,1766130661587,-500.0,0.00054794,120]
[399163683,1766130661596,-570.98,0.00054794,120]
[399163684,1766130661606,-500.0,0.00054794,120]
[399163685,1766130661615,-500.0,0.00054794,120]
[399163686,1766130661624,-500.0,0.00054794,120]
[399163687,1766130661634,-524.89650157,0.00054794,120]
[399163688,1766130661647,-500.0,0.00054794,120]
[399163689,1766130661657,-617.64,0.00054794,120]
[399163690,1766130661666,-708.43,0.00054794,120]
[399163691,1766130661676,-500.0,0.00054794,120]
[399163692,1766130661685,-500.0,0.00054794,120]
[399163693,1766130661694,-500.0,0.00054794,120]
[399163694,1766130661703,-1112.0,0.00054794,20]
[399163695,1766130661712,-500.0,0.00054794,120]
[399163696,1766130661720,-250.0,0.00054794,20]
[399163697,1766130661730,-1112.0,0.00054794,20]
[399163698,1766130661739,-250.0,0.00054794,20]
[399163699,1766130661748,-1112.0,0.00054794,20]
[399163700,1766130661758,-756.93,0.00054794,120]
[399163701,1766130661767,-250.0,0.00054794,20]
[399163702,1766130661776,-1547.5,0.00054794,120]
[399163703,1766130661785,-1112.0,0.00054794,20]
[399163704,1766130661794,-505.81552063,0.00054794,120]
[399163705,1766130661803,-250.0,0.00054794,20]
[399163706,1766130661812,-1112.0,0.00054794,20]
[399163707,1766130661822,-250.0,0.00054794,20]
[399163708,1766130661831,-564.73,0.00054794,120]
[399163709,1766130661840,-1112.0,0.00054794,20]
[399163710,1766130661850,-250.0,0.00054794,20]
[399163711,1766130661859,-1112.0,0.00054794,20]
[399163712,1766130661868,-250.0,0.00054794,20]
[399163713,1766130661877,-1112.0,0.00054794,20]
[399163714,1766130661886,-250.0,0.00054794,20]
[399163715,1766130661896,-500.0,0.00054794,120]
[399163716,1766130661906,-788.22,0.00054794,120]
[399163717,1766130661916,-574.12855637,0.00054794,20]
[399163718,1766130661926,-250.0,0.00054794,20]
[399163719,1766130661936,-1112.0,0.00054794,20]
[399163720,1766130661946,-595.37131296,0.00054794,20]
[399163721,1766130661955,-250.0,0.00054794,20]
[399163722,1766130661965,-1112.0,0.00054794,20]
[399163723,1766130661974,-617.40005154,0.00054794,20]
[399163724,1766130661983,-250.0,0.00054794,20]
[399163725,1766130661993,-500.0,0.00054794,120]
[399163726,1766130662003,-1112.0,0.00054794,20]
[399163727,1766130662012,-640.24385345,0.00054794,20]
[399163728,1766130662098,-501.45823391,0.00054794,120]
[399163729,1766130662108,-663.93287602,0.00054794,20]
[399163730,1766130662118,-688.49839244,0.00054794,20]
[399163731,1766130662128,-713.97283296,0.00054794,20]
[399163732,1766130662138,-500.0,0.00054794,120]
[399163733,1766130662148,-500.0,0.00054794,120]
[399163734,1766130662158,-740.38982778,0.00054794,20]
[399163735,1766130662168,-500.0,0.00054794,120]
[399163736,1766130662178,-767.7842514,0.00054794,20]
[399163737,1766130662187,-796.19226871,0.00054794,20]
[399163738,1766130662196,-500.4906499,0.00054794,120]
[399163739,1766130662206,-845.15469483,0.00054794,20]
[399163740,1766130662215,-500.0,0.00054794,120]
[399163741,1766130662225,-500.0,0.00054794,120]
[399163742,1766130662234,-500.0,0.00054794,120]
[399163743,1766130662244,-500.0,0.00054794,120]
[399163744,1766130662255,-500.0,0.00054794,120]
[399163745,1766130662264,-500.0,0.00054794,120]
[399163746,1766130662274,-500.0,0.00054794,120]
[399163747,1766130662283,-500.0,0.00054794,120]
[399163748,1766130662293,-500.0,0.00054794,120]
[399163749,1766130662302,-500.0,0.00054794,120]
[399163750,1766130662312,-500.0,0.00054794,120]
[399163751,1766130662323,-500.79619491,0.00054794,120]
[399163752,1766130662334,-500.0,0.00054794,120]
[399163753,1766130662345,-500.0,0.00054794,120]
[399163754,1766130662355,-500.0,0.00054794,120]
[399163755,1766130662366,-250.0,0.00054794,20]
[399163756,1766130662376,-250.0,0.00054794,20]
[399163757,1766130662385,-500.0,0.00054794,120]
[399163758,1766130662394,-250.0,0.00054794,20]
[399163759,1766130662404,-500.0,0.00054794,120]
[399163760,1766130662413,-1289.84,0.00054794,120]
[399163761,1766130662424,-500.0,0.00054794,120]
[399163762,1766130662433,-501.01003045,0.00054794,120]
[399163763,1766130662443,-500.43374953,0.00054794,12]
[399163764,1766130662452,-500.0,0.00054794,120]
[399163765,1766130662462,-500.0,0.00054794,120]
[399163766,1766130662471,-1514.92,0.00054794,120]
[399163767,1766130662480,-500.25801773,0.00054794,120]
[399163768,1766130662489,-500.0,0.00054794,120]
[399163769,1766130662499,-527.55951426,0.00054795,120]
[399163770,1766130662510,-479.167005,0.00054795,90]
[399163771,1766130662519,-479.167005,0.00054795,90]
[399163772,1766130662529,-479.167005,0.00054795,90]
[399163773,1766130662539,-479.167005,0.00054795,90]
[399163774,1766130662548,-479.167005,0.00054795,90]
[399163775,1766130662557,-479.167005,0.00054795,90]
[399163776,1766130662566,-479.167005,0.00054795,90]
[399163777,1766130662575,-479.167005,0.00054795,90]
[399163778,1766130662584,-479.167005,0.00054795,90]
[399163779,1766130662593,-479.167005,0.00054795,90]
[399163780,1766130662601,-479.167005,0.00054795,90]
[399163781,1766130662611,-479.167005,0.00054795,90]
[399163782,1766130662620,-479.167005,0.00054795,90]
[399163783,1766130662629,-479.167005,0.00054795,90]
[399163784,1766130662639,-479.167005,0.00054795,90]
[399163785,1766130662651,-479.167005,0.00054795,90]
[399163786,1766130662660,-479.167005,0.00054795,90]
[399163787,1766130662669,-479.167005,0.00054795,90]
[399163788,1766130662678,-479.167005,0.00054795,90]
[399163789,1766130662689,-479.167005,0.00054795,90]
[399163790,1766130662698,-500.0,0.00054795,120]
[399163791,1766130662707,-242.53,0.000548,14]
[399163792,1766130662716,-151.44692879,0.00054959,30]
[399163793,1766130662725,-2000.0,0.0005498,21]
[399163794,1766130662735,-2239.65,0.00055,120]
[399163795,1766130662745,-5799.1239107,0.00055,120]
[399163796,1766130662754,-668.1490741,0.00055,120]
[399163797,1766130662764,-1041.66666667,0.00055,120]
[399163798,1766130662773,-200.0,0.00055,120]
[399163799,1766130662782,-500.0,0.00055068,120]
[399163800,1766130662791,-780.17,0.00055068,120]
[399163801,1766130662800,-500.0,0.00055068,7]
[399163802,1766130662809,-500.0,0.00055068,120]
[399163803,1766130662819,-506.01527023,0.00055068,120]
[399163804,1766130662828,-505.72982047,0.00055068,120]
[399163805,1766130662837,-505.60676227,0.00055068,120]
[399163806,1766130662847,-521.9890597,0.00055068,120]
[399163807,1766130662856,-500.0,0.00055068,120]
[399163808,1766130662871,-500.0,0.00055068,120]
[399163809,1766130662888,-509.0269969,0.00055068,120]
[399163810,1766130662900,-500.0,0.00055068,120]
[399163811,1766130662916,-501.76062157,0.00055068,120]
[399163812,1766130662931,-500.0,0.00055068,120]
[399163813,1766130662948,-503.25469927,0.00055068,15]
[399163814,1766130662963,-504.51378669,0.00055068,120]
[399163815,1766130662977,-500.0,0.00055068,120]
[399163816,1766130662992,-500.0,0.00055068,120]
[399163817,1766130663010,-500.0,0.00055068,120]
[399163818,1766130663024,-508.63845223,0.00055068,120]
[399163819,1766130663037,-505.39002928,0.00055068,120]
[399163820,1766130663051,-500.0,0.00055068,120]
[399163821,1766130663068,-1000.0,0.00055068,2]
[399163822,1766130663084,-500.0,0.00055068,120]
[399163823,1766130663103,-500.0,0.00055068,120]
[399163824,1766130663116,-503.85790708,0.00055068,120]
[399163825,1766130663128,-521.39936945,0.00055068,120]
[399163826,1766130663146,-500.0,0.00055068,120]
[399163827,1766130663163,-502.8015237,0.00055068,120]
[399163828,1766130663177,-500.0,0.00055068,30]
[399163829,1766130663192,-500.0,0.00055068,120]
[399163830,1766130663208,-376.01248745,0.00055068,120]
[399163831,1766130663220,-527.64,0.00055068,120]
[399163832,1766130663233,-500.0,0.00055068,120]
[399163833,1766130663246,-317.64264506,0.00055068,120]
[399163834,1766130663262,-504.25236937,0.00055068,120]
[399163835,1766130663275,-500.0,0.00055068,120]
[399163836,1766130663288,-500.0,0.00055068,120]
[399163837,1766130663300,-808.56,0.00055068,120]
[399163838,1766130663312,-500.0,0.00055068,5]
[399163839,1766130663324,-500.0,0.00055068,120]
[399163840,1766130663336,-500.0,0.00055068,120]
[399163841,1766130663349,-500.0,0.00055068,120]
[399163842,1766130663361,-505.8652241,0.00055068,120]
[399163843,1766130663373,-500.0,0.00055068,120]
[399163844,1766130663385,-524.79619618,0.00055068,120]
[399163845,1766130663398,-500.0,0.00055068,120]
[399163846,1766130663410,-504.77367095,0.00055068,120]
[399163847,1766130663421,-504.9130139,0.00055068,120]
[399163848,1766130663433,-500.0,0.00055068,120]
[399163849,1766130663446,-500.0,0.00055068,120]
[399163850,1766130663458,-500.0,0.00055068,120]
[399163851,1766130663470,-500.0,0.00055068,120]
[399163852,1766130663482,-500.0,0.00055068,120]
[399163853,1766130663494,-500.0,0.00055068,120]
[399163854,1766130663507,-185.3133977,0.00055068,120]
[399163855,1766130663519,-500.0,0.00055068,120]
[399163856,1766130663531,-500.0,0.00055068,30]
[399163857,1766130663544,-500.0,0.00055068,120]
[399163858,1766130663556,-500.0,0.00055068,120]
[399163859,1766130663568,-500.0,0.00055068,120]
[399163860,1766130663580,-500.0,0.00055068,120]
[399163861,1766130663592,-502.050365,0.00055068,20]
[399163862,1766130663604,-500.0,0.00055068,120]
[399163863,1766130663615,-504.28887153,0.00055068,120]
[399163864,1766130663628,-3828.03,0.00055068,120]
[399163865,1766130663639,-500.0,0.00055068,120]
[399163866,1766130663655,-500.0,0.00055068,120]
[399163867,1766130663667,-1000.0,0.00055068,2]
[399163868,1766130663679,-505.59498502,0.00055068,120]
[399163869,1766130663693,-500.0,0.00055068,120]
[399163870,1766130663705,-500.0,0.00055068,120]
[399163871,1766130663717,-571.75868225,0.00055068,120]
[399163872,1766130663729,-522.676726,0.00055068,120]
[399163873,1766130663740,-443.61804686,0.00055068,120]
[399163874,1766130663753,-500.0,0.00055068,120]
[399163875,1766130663766,-503.70779695,0.00055068,120]
[399163876,1766130663778,-542.35330731,0.00055068,120]
[399163877,1766130663790,-504.11261688,0.00055068,120]
[399163878,1766130663802,-500.0,0.00055068,120]
[399163879,1766130663816,-500.0,0.00055068,120]
[399163880,1766130663828,-500.0,0.00055068,120]
[399163881,1766130663840,-500.0,0.00055068,120]
[399163882,1766130663851,-1164.05,0.00055068,120]
[399163883,1766130663865,-500.0,0.00055068,120]
[399163884,1766130663876,-500.0,0.00055068,120]
[399163885,1766130663888,-502.30422431,0.00055068,120]
[399163886,1766130663900,-378.42649115,0.00055068,120]
[399163887,1766130664035,-500.0,0.00055068,2]
[399163888,1766130664049,-500.0,0.00055068,120]
[399163889,1766130664059,-502.5081235,0.00055068,120]
[399163890,1766130664068,-500.0,0.00055068,120]
[399163891,1766130664078,-505.25873033,0.00055068,120]
[399163892,1766130664088,-500.0,0.00055068,120]
[399163893,1766130664098,-500.0,0.00055068,120]
[399163894,1766130664107,-500.0,0.00055068,120]
[399163895,1766130664116,-500.0,0.00055068,120]
[399163896,1766130664125,-611.89894026,0.00055068,30]
[399163897,1766130664135,-443.10052477,0.00055068,120]
[399163898,1766130664144,-500.0,0.00055068,120]
[399163899,1766130664153,-500.0,0.00055068,120]
[399163900,1766130664162,-506.78592343,0.00055068,120]
[399163901,1766130664172,-500.0,0.00055068,120]
[399163902,1766130664181,-500.0,0.00055068,120]
[399163903,1766130664190,-500.0,0.00055068,120]
[399163904,1766130664201,-500.0,0.00055068,120]
[399163905,1766130664211,-503.3976921,0.00055068,120]
[399163906,1766130664221,-500.0,0.00055068,120]
[399163907,1766130664230,-500.0,0.00055068,120]
[399163908,1766130664239,-500.0,0.00055068,120]
[399163909,1766130664249,-500.0,0.00055068,120]
[399163910,1766130664260,-500.0,0.00055068,120]
[399163911,1766130664269,-462.94915397,0.00055068,120]
[399163912,1766130664279,-500.0,0.00055068,60]
[399163913,1766130664289,-284.29988215,0.00055068,120]
[399163914,1766130664298,-500.0,0.00055068,120]
[399163915,1766130664308,-538.52,0.00055068,120]
[399163916,1766130664317,-500.0,0.00055068,120]
[399163917,1766130664326,-500.0,0.00055068,120]
[399163918,1766130664335,-500.0,0.00055068,120]
[399163919,1766130664344,-500.0,0.00055068,120]
[399163920,1766130664353,-500.0,0.00055068,120]
[399163921,1766130664362,-500.0,0.00055068,120]
[399163922,1766130664371,-500.0,0.00055068,120]
[399163923,1766130664380,-500.0,0.00055068,120]
[399163924,1766130664389,-500.0,0.00055068,120]
[399163925,1766130664398,-1789.97,0.00055068,120]
[399163926,1766130664408,-500.0,0.00055068,120]
[399163927,1766130664417,-500.0,0.00055068,120]
[399163928,1766130664427,-332.83967667,0.00055068,120]
[399163929,1766130664436,-500.0,0.00055068,120]
[399163930,1766130664445,-500.0,0.00055068,120]
[399163931,1766130664454,-500.0,0.00055068,120]
[399163932,1766130664463,-500.0,0.00055068,120]
[399163933,1766130664472,-500.0,0.00055068,120]
[399163934,1766130664481,-500.0,0.00055068,120]
[399163935,1766130664490,-503.93891222,0.00055068,120]
[399163936,1766130664499,-500.0,0.00055068,120]
[399163937,1766130664509,-500.0,0.00055068,120]
[399163938,1766130664519,-500.0,0.00055068,120]
[399163939,1766130664528,-512.97,0.00055068,120]
[399163940,1766130664537,-500.0,0.00055068,120]
[399163941,1766130664546,-500.0,0.00055068,120]
[399163942,1766130664555,-502.60809675,0.00055068,120]
[399163943,1766130664564,-500.0,0.00055068,120]
[399163944,1766130664573,-500.0,0.00055068,120]
[399163945,1766130664582,-620.48112617,0.00055068,120]
[399163946,1766130664591,-500.0,0.00055068,120]
[399163947,1766130664600,-500.0,0.00055068,120]
[399163948,1766130664609,-500.0,0.00055068,120]
[399163949,1766130664618,-500.0,0.00055068,120]
[399163950,1766130664627,-500.0,0.00055068,120]
[399163951,1766130664637,-500.0,0.00055068,120]
[399163952,1766130664649,-500.0,0.00055068,120]
[399163953,1766130664659,-1954.53,0.00055068,120]
[399163954,1766130664668,-506.47931462,0.00055068,120]
[399163955,1766130664679,-465.24839172,0.00055068,120]
[399163956,1766130664688,-500.0,0.00055068,120]
[399163957,1766130664698,-637.89430412,0.00055068,120]
[399163958,1766130664707,-501.35564317,0.00055068,120]
[399163959,1766130664716,-500.0,0.00055068,120]
[399163960,1766130664726,-500.0,0.00055068,120]
[399163961,1766130664735,-184.54375707,0.00055068,120]
[399163962,1766130664744,-500.0,0.00055068,120]
[399163963,1766130664753,-505.87387594,0.00055068,120]
[399163964,1766130664763,-500.0,0.00055068,120]
[399163965,1766130664772,-500.0,0.00055068,120]
[399163966,1766130664781,-500.0,0.00055068,120]
[399163967,1766130664791,-504.69945141,0.00055068,120]
[399163968,1766130664800,-502.1854496,0.00055068,120]
[399163969,1766130664810,-500.0,0.00055068,120]
[399163970,1766130664819,-1050.87,0.00055068,120]
[399163971,1766130664828,-3817.38,0.00055068,120]
[399163972,1766130664837,-500.0,0.00055068,120]
[399163973,1766130664845,-500.0,0.00055068,120]
[399163974,1766130664854,-623.38056256,0.00055068,120]
[399163975,1766130664863,-500.0,0.00055068,120]
[399163976,1766130664872,-500.0,0.00055068,120]
[399163977,1766130664882,-500.0,0.00055068,120]
[399163978,1766130664890,-500.0,0.00055068,120]
[399163979,1766130664899,-505.17992567,0.00055068,120]
[399163980,1766130664909,-500.0,0.00055068,30]
[399163981,1766130664918,-500.0,0.00055068,120]
[399163982,1766130664927,-500.0,0.00055068,30]
[399163983,1766130664937,-500.0,0.00055068,120]
[399163984,1766130664946,-500.0,0.00055068,120]
[399163985,1766130664955,-1315.23,0.00055068,120]
[399163986,1766130664963,-500.0,0.00055068,120]
[399163987,1766130664972,-533.11788938,0.00055068,120]
[399163988,1766130664981,-500.0,0.00055068,120]
[399163989,1766130664990,-500.0,0.00055068,120]
[399163990,1766130664999,-500.0,0.00055068,120]
[399163991,1766130665009,-574.22112662,0.00055068,14]
[399163992,1766130665019,-500.0,0.00055068,120]
[399163993,1766130665029,-203.32717799,0.00055068,120]
[399163994,1766130665038,-388.21589445,0.00055068,120]
[399163995,1766130665047,-500.0,0.00055068,120]
[399163996,1766130665057,-500.0,0.00055068,120]
[399163997,1766130665066,-500.0,0.00055068,120]
[399163998,1766130665075,-500.75249452,0.00055068,120]
[399163999,1766130665084,-1071.88,0.00055068,120]
[399164000,1766130665094,-500.0,0.00055068,120]
[399164001,1766130665103,-500.0,0.00055068,120]
[399164002,1766130665112,-500.0,0.00055068,120]
[399164003,1766130665121,-500.0,0.00055068,120]
[399164004,1766130665130,-502.3030218,0.00055068,120]
[399164005,1766130665139,-500.0,0.00055068,120]
[399164006,1766130665148,-500.0,0.00055068,120]
[399164007,1766130665157,-505.22282683,0.00055068,120]
[399164008,1766130665167,-500.0,0.00055068,120]
[399164009,1766130665176,-500.0,0.00055068,120]
[399164010,1766130665185,-500.0,0.00055068,120]
[399164011,1766130665194,-500.0,0.00055068,120]
[399164012,1766130665204,-500.0,0.00055068,120]
[399164013,1766130665213,-500.0,0.00055068,120]
[399164014,1766130665222,-500.0,0.00055068,60]
[399164015,1766130665232,-500.0,0.00055068,120]
[399164016,1766130665242,-500.0,0.00055068,120]
[399164017,1766130665251,-500.0,0.00055068,120]
[399164018,1766130665261,-500.0,0.00055068,120]
[399164019,1766130665270,-500.0,0.00055068,120]
[399164020,1766130665280,-500.0,0.00055068,120]
[399164021,1766130665290,-500.0,0.00055068,120]
[399164022,1766130665299,-501.136953,0.00055068,120]
[399164023,1766130665309,-384.12933161,0.00055068,120]
[399164024,1766130665319,-500.0,0.00055068,120]
[399164025,1766130665331,-556.29747791,0.00055068,120]
[399164026,1766130665341,-500.0,0.00055068,120]
[399164027,1766130665350,-524.88,0.00055068,120]
[399164028,1766130665359,-500.0,0.00055068,120]
[399164029,1766130665369,-500.0,0.00055068,120]
[399164030,1766130665379,-500.0,0.00055068,120]
[399164031,1766130665388,-696.02,0.00055068,120]
[399164032,1766130665397,-1278.98,0.00055068,120]
[399164033,1766130665406,-848.2,0.00055068,120]
[399164034,1766130665415,-500.0,0.00055068,120]
[399164035,1766130665424,-682.7,0.00055068,120]
[399164036,1766130665433,-505.92713281,0.00055068,120]
[399164037,1766130665444,-500.0,0.00055068,120]
[399164038,1766130665454,-504.90134541,0.00055068,120]
[399164039,1766130665464,-500.0,0.00055068,120]
[399164040,1766130665474,-1176.57,0.00055068,120]
[399164041,1766130665482,-500.0,0.00055068,120]
[399164042,1766130665492,-503.60382717,0.00055068,120]
[399164043,1766130665502,-345.20278196,0.00055068,120]
[399164044,1766130665511,-500.0,0.00055068,120]
[399164045,1766130665520,-500.0,0.00055068,120]
[399164046,1766130665530,-500.0,0.00055068,120]
[399164047,1766130665539,-500.0,0.00055068,120]
[399164048,1766130665549,-500.0,0.00055068,120]
[399164049,1766130665558,-500.0,0.00055068,120]
[399164050,1766130665567,-500.0,0.00055068,120]
[399164051,1766130665576,-500.0,0.00055068,120]
[399164052,1766130665586,-500.0,0.00055068,120]
[399164053,1766130665597,-500.0,0.00055068,120]
[399164054,1766130665608,-500.0,0.00055068,120]
[399164055,1766130665618,-577.23997363,0.00055068,120]
[399164056,1766130665629,-1672.469074,0.00055068,120]
[399164057,1766130665638,-500.0,0.00055068,120]
[399164058,1766130665652,-500.0,0.00055068,120]
[399164059,1766130665663,-628.56,0.00055068,120]
[399164060,1766130665673,-500.0,0.00055068,120]
[399164061,1766130665682,-500.0,0.00055068,120]
[399164062,1766130665691,-500.0,0.00055068,120]
[399164063,1766130665701,-504.55439584,0.00055068,120]
[399164064,1766130665793,-500.0,0.00055068,120]
[399164065,1766130665802,-500.0,0.00055068,120]
[399164066,1766130665811,-1384.97,0.00055068,120]
[399164067,1766130665822,-503.35864428,0.00055068,120]
[399164068,1766130665831,-500.0,0.00055068,120]
[399164069,1766130665840,-502.93566481,0.00055068,120]
[399164070,1766130665850,-500.0,0.00055068,120]
[399164071,1766130665859,-500.0,0.00055068,120]
[399164072,1766130665868,-1052.14,0.00055068,120]
[399164073,1766130665877,-500.0,0.00055068,120]
[399164074,1766130665886,-500.0,0.00055068,120]
[399164075,1766130665896,-500.0,0.00055068,120]
[399164076,1766130665905,-500.0,0.00055068,120]
[399164077,1766130665913,-500.0,0.00055068,120]
[399164078,1766130665922,-500.0,0.00055068,120]
[399164079,1766130665932,-500.0,0.00055068,120]
[399164080,1766130665940,-500.0,0.00055068,120]
[399164081,1766130665949,-500.0,0.00055068,120]
[399164082,1766130665958,-500.0,0.00055068,120]
[399164083,1766130665967,-500.0,0.00055068,120]
[399164084,1766130665977,-502.96964297,0.00055068,120]
[399164085,1766130665985,-500.0,0.00055068,120]
[399164086,1766130665994,-500.0,0.00055068,120]
[399164087,1766130666003,-503.65222979,0.00055068,120]
[399164088,1766130666012,-500.0,0.00055068,120]
[399164089,1766130666022,-505.06644677,0.00055068,120]
[399164090,1766130666031,-500.0,0.00055068,120]
[399164091,1766130666039,-500.0,0.00055068,120]
[399164092,1766130666049,-500.0,0.00055068,120]
[399164093,1766130666058,-500.0,0.00055068,120]
[399164094,1766130666068,-503.23769569,0.00055068,120]
[399164095,1766130666077,-500.0,0.00055068,120]
[399164096,1766130666086,-500.0,0.00055068,120]
[399164097,1766130666095,-500.0,0.00055068,120]
[399164098,1766130666105,-500.0,0.00055068,120]
[399164099,1766130666114,-500.0,0.00055068,120]
[399164100,1766130666122,-506.48267859,0.00055068,120]
[399164101,1766130666132,-500.0,0.00055068,120]
[399164102,1766130666141,-500.0,0.00055068,120]
[399164103,1766130666150,-500.0,0.00055068,120]
[399164104,1766130666159,-501.29587182,0.00055068,120]
[399164105,1766130666168,-500.0,0.00055068,120]
[399164106,1766130666177,-501.95205021,0.00055068,120]
[399164107,1766130666185,-649.7960946,0.00055068,120]
[399164108,1766130666195,-500.0,0.00055068,120]
[399164109,1766130666204,-500.0,0.00055068,120]
[399164110,1766130666213,-502.12813565,0.00055068,120]
[399164111,1766130666222,-1084.45,0.00055068,120]
[399164112,1766130666231,-500.0,0.00055068,120]
[399164113,1766130666241,-509.09581999,0.00055068,120]
[399164114,1766130666251,-500.0,0.00055068,120]
[399164115,1766130666261,-500.0,0.00055068,120]
[399164116,1766130666270,-502.525675,0.00055068,120]
[399164117,1766130666281,-504.56536254,0.00055068,120]
[399164118,1766130666292,-500.0,0.00055068,120]
[399164119,1766130666302,-898.43,0.00055068,120]
[399164120,1766130666313,-500.0,0.00055068,120]
[399164121,1766130666323,-601.00585755,0.00055068,120]
[399164122,1766130666333,-505.36640739,0.00055068,120]
[399164123,1766130666343,-516.81287519,0.00055068,120]
[399164124,1766130666352,-500.0,0.00055068,120]
[399164125,1766130666361,-500.0,0.00055068,120]
[399164126,1766130666370,-500.0,0.00055068,120]
[399164127,1766130666379,-500.0,0.00055068,120]
[399164128,1766130666388,-500.0,0.00055068,120]
[399164129,1766130666398,-500.0,0.00055068,120]
[399164130,1766130666408,-502.58479618,0.00055068,120]
[399164131,1766130666418,-500.0,0.00055068,120]
[399164132,1766130666427,-392.9629553,0.00055068,120]
[399164133,1766130666437,-500.0,0.00055068,30]
[399164134,1766130666446,-841.83,0.00055068,120]
[399164135,1766130666455,-500.0,0.00055068,120]
[399164136,1766130666464,-500.0,0.00055068,120]
[399164137,1766130666473,-500.0,0.00055068,120]
[399164138,1766130666483,-500.0,0.00055068,120]
[399164139,1766130666491,-500.0,0.00055068,120]
[399164140,1766130666500,-500.0,0.00055068,120]
[399164141,1766130666511,-500.0,0.00055068,120]
[399164142,1766130666520,-500.0,0.00055068,120]
[399164143,1766130666529,-500.0,0.00055068,120]
[399164144,1766130666538,-506.79621024,0.00055068,120]
[399164145,1766130666547,-500.0,0.00055068,120]
[399164146,1766130666556,-504.5923244,0.00055068,120]
[399164147,1766130666565,-1049.58,0.00055068,120]
[399164148,1766130666574,-500.0,0.00055068,120]
[399164149,1766130666583,-500.0,0.00055068,120]
[399164150,1766130666592,-500.0,0.00055068,60]
[399164151,1766130666601,-500.0,0.00055068,120]
[399164152,1766130666610,-168.40284415,0.00055068,120]
[399164153,1766130666619,-500.0,0.00055068,120]
[399164154,1766130666628,-500.0,0.00055068,120]
[399164155,1766130666637,-500.0,0.00055068,120]
[399164156,1766130666647,-5832.94,0.00055068,120]
[399164157,1766130666656,-505.21568898,0.00055068,120]
[399164158,1766130666665,-500.0,0.00055068,120]
[399164159,1766130666674,-500.0,0.00055068,120]